bitfinex/quotes_ETHUSD_20240630
["timestamp","ask_amount","ask_price","bid_price","bid_amount"]
[1719709566742,2.3455,3388.8,3387.3,2.06651]
[1719709566743,2.3455,3388.8,3388.3,0.855]
[1719709566953,0.06459974,3388.7,3388.3,0.855]
[1719709567247,0.06460061,3388.6,3388.3,0.855]
[1719709567410,2.3455,3388.5,3388.3,0.855]
[1719709567614,0.06453596,3388.4,3388.3,0.855]
[1719709567814,0.06453596,3388.4,3388.3,1.405]
[1719709569148,14.74724798,3388.4,3388.3,0.55]
[1719709572457,14.74620691,3388.4,3388.3,0.55]
[1719709573472,14.74620691,3388.4,3388.3,0.68]
[1719709574454,16.4553776,3388.4,3388.3,0.13]
[1719709575855,18.8008776,3388.4,3388.3,0.13]
[1719709577068,14.74620691,3388.4,3388.3,1.535]
[1719709583386,14.74620691,3388.4,3388.3,0.68]
[1719709583583,14.74620691,3388.4,3388.3,1.535]
[1719709593304,14.74620691,3388.4,3388.3,0.68]
[1719709593511,14.74620691,3388.4,3388.3,1.535]
[1719709600044,14.74620691,3388.4,3388.3,0.68]
[1719709600045,17.08570691,3388.4,3388.3,0.68]
[1719709600229,18.7942776,3388.4,3388.3,0.68]
[1719709601219,17.08570691,3388.4,3388.3,0.68]
[1719709615682,17.08570691,3388.4,3388.3,0.13]
[1719709615848,14.74620691,3388.4,3388.3,0.13]
[1719709630409,17.20590691,3388.4,3388.3,0.13]
[1719709634587,17.14241202,3388.4,3388.3,0.13]
[1719709634808,17.20368969,3388.4,3388.3,0.13]
[1719709635321,18.92405866,3388.4,3388.3,0.13]
[1719709636989,19.39890327,3388.4,3388.3,0.13]
[1719709639384,19.39896745,3388.4,3388.3,0.13]
[1719709639628,19.39896316,3388.4,3388.3,0.13]
[1719709642829,19.398947,3388.4,3388.3,0.13]
[1719709645887,18.92405866,3388.4,3388.3,0.13]
[1719709646187,19.39894878,3388.4,3388.3,0.13]
[1719709649123,18.92405866,3388.4,3388.3,0.13]
[1719709649292,19.39894094,3388.4,3388.3,0.13]
[1719709649689,19.39894997,3388.4,3388.3,0.13]
[1719709652523,19.39895023,3388.4,3388.3,0.13]
[1719709655498,18.92405866,3388.4,3388.3,0.13]
[1719709655698,19.39890892,3388.4,3388.3,0.13]
[1719709658673,18.92405866,3388.4,3388.3,0.13]
[1719709658989,19.39877119,3388.4,3388.3,0.13]
[1719709662028,19.39884314,3388.4,3388.3,0.13]
[1719709662663,19.3988453,3388.4,3388.3,0.13]
[1719709665256,19.39888566,3388.4,3388.3,0.13]
[1719709667670,19.36838566,3388.4,3388.3,0.13]
[1719709668380,18.89355866,3388.4,3388.3,0.13]
[1719709668576,19.36844566,3388.4,3388.3,0.13]
[1719709671678,19.36836945,3388.4,3388.3,0.13]
[1719709673479,16.93916945,3388.4,3388.3,0.13]
[1719709674691,16.46435866,3388.4,3388.3,0.13]
[1719709674864,16.93908866,3388.4,3388.3,0.13]
[1719709675183,16.46435866,3388.4,3388.3,0.13]
[1719709675350,16.93910227,3388.4,3388.3,0.13]
[1719709677803,16.46435866,3388.4,3388.3,0.13]
[1719709677959,16.93896175,3388.4,3388.3,0.13]
[1719709680713,16.46435866,3388.4,3388.3,0.13]
[1719709680989,16.93896227,3388.4,3388.3,0.13]
[1719709683688,16.46435866,3388.4,3388.3,0.13]
[1719709683891,16.93912062,3388.4,3388.3,0.13]
[1719709686933,16.46435866,3388.4,3388.3,0.13]
[1719709687218,16.93913227,3388.4,3388.3,0.13]
[1719709687510,16.93915658,3388.4,3388.3,0.13]
[1719709689979,16.46435866,3388.4,3388.3,0.13]
[1719709690179,16.93907211,3388.4,3388.3,0.13]
[1719709693400,16.93910669,3388.4,3388.3,0.13]
[1719709696568,16.46435866,3388.4,3388.3,0.13]
[1719709696695,16.93915943,3388.4,3388.3,0.13]
[1719709699739,16.46435866,3388.4,3388.3,0.13]
[1719709699914,16.93909717,3388.4,3388.3,0.13]
[1719709700316,16.939082,3388.4,3388.3,0.13]
[1719709702442,19.225982,3388.4,3388.3,0.13]
[1719709702846,18.75125866,3388.4,3388.3,0.13]
[1719709703027,19.22605231,3388.4,3388.3,0.13]
[1719709706163,18.75125866,3388.4,3388.3,0.13]
[1719709706363,19.22597507,3388.4,3388.3,0.13]
[1719709709475,19.22595893,3388.4,3388.3,0.13]
[1719709709827,18.75125866,3388.4,3388.3,0.13]
[1719709710139,19.22595774,3388.4,3388.3,0.13]
[1719709711658,23.97838994,3388.4,3388.3,0.13]
[1719709712654,21.86525866,3388.4,3388.3,0.13]
[1719709712845,23.97874524,3388.4,3388.3,0.13]
[1719709713231,21.86525866,3388.4,3388.3,0.13]
[1719709713437,23.9788541,3388.4,3388.3,0.13]
[1719709715869,21.86525866,3388.4,3388.3,0.13]
[1719709716070,23.97887176,3388.4,3388.3,0.13]
[1719709717441,24.83387176,3388.4,3388.3,0.13]
[1719709718439,31.78566645,3388.4,3388.3,0.13]
[1719709719006,29.67205335,3388.4,3388.3,0.13]
[1719709719155,31.78624046,3388.4,3388.3,0.13]
[1719709721657,30.93124046,3388.4,3388.3,0.13]
[1719709722015,31.78624046,3388.4,3388.3,0.13]
[1719709722309,31.78621267,3388.4,3388.3,0.13]
[1719709725607,31.7863192,3388.4,3388.3,0.13]
[1719709725978,29.67205335,3388.4,3388.3,0.13]
[1719709726178,31.78631812,3388.4,3388.3,0.13]
[1719709728611,29.67205335,3388.4,3388.3,0.13]
[1719709728777,31.786067,3388.4,3388.3,0.13]
[1719709729974,31.78605969,3388.4,3388.3,0.13]
[1719709732123,31.7860648,3388.4,3388.3,0.13]
[1719709735194,29.67205335,3388.4,3388.3,0.13]
[1719709735365,30.14723509,3388.4,3388.3,0.13]
[1719709737191,31.78609473,3388.4,3388.3,0.13]
[1719709738519,29.67205335,3388.4,3388.3,0.13]
[1719709738722,31.7861082,3388.4,3388.3,0.13]
[1719709739027,29.67205335,3388.4,3388.3,0.13]
[1719709739319,31.78610224,3388.4,3388.3,0.13]
[1719709741002,29.67205335,3388.4,3388.3,0.13]
[1719709741353,31.78652853,3388.4,3388.3,0.13]
[1719709741711,30.42205335,3388.4,3388.3,0.13]
[1719709741891,32.5365676,3388.4,3388.3,0.13]
[1719709742922,33.2865676,3388.4,3388.3,0.13]
[1719709743072,3.114,3387.6,3386.8,2.4498]
[1719709743270,0.855,3386.9,3386.8,2.4498]
[1719709743589,15.59048441,3386.9,3386.8,2.4498]
[1719709744486,15.59048441,3386.9,3385.8,2.4498]
[1719709744681,0.855,3386.7,3385.8,2.4498]
[1719709745072,0.05260963,3386.6,3385.8,2.4498]
[1719709745484,0.05260963,3386.6,3385.9,0.55]
[1719709745693,0.05260963,3386.6,3386.0,2.4498]
[1719709748726,0.05238566,3386.5,3386.0,2.4498]
[1719709749032,0.855,3386.7,3386.0,2.4498]
[1719709749224,0.05236083,3386.4,3386.0,2.4498]
[1719709749411,14.68271202,3386.6,3386.0,2.4498]
[1719709749620,0.05228699,3386.3,3386.0,2.4498]
[1719709749951,14.68271202,3386.6,3386.0,2.4498]
[1719709750239,0.05225463,3386.2,3386.0,2.4498]
[1719709750437,14.68271202,3386.1,3386.0,2.4498]
[1719709750636,14.73493428,3386.1,3386.0,2.9998]
[1719709750793,14.73493428,3386.1,3386.0,5.9998]
[1719709758352,16.20842771,3386.1,3386.0,3.0]
[1719709758553,16.20842771,3386.1,3385.6,2.3155]
[1719709758854,16.20842771,3386.1,3385.7,0.55]
[1719709759054,16.20842771,3386.1,3385.7,3.55]
[1719709760358,16.20842771,3386.1,3385.7,3.0]
[1719709760359,1.62084277,3386.0,3385.7,3.0]
[1719709760664,1.67295415,3386.0,3385.5,2.3155]
[1719709761215,1.78291596,3385.9,3385.5,2.3155]
[1719709761447,1.83499497,3385.9,3385.5,2.3155]
[1719709762357,0.05207901,3385.9,3385.5,2.3155]
[1719709762532,16.15620545,3386.1,3385.5,5.3155]
[1719709762738,0.05212932,3386.0,3385.5,5.3155]
[1719709764250,14.68271202,3385.9,3385.5,5.3155]
[1719709764634,0.05206458,3385.8,3385.5,5.3155]
[1719709766334,0.05206458,3385.8,3385.5,2.3155]
[1719709767430,1.67289158,3385.8,3385.2,0.855]
[1719709767671,14.68271202,3385.7,3385.2,3.855]
[1719709768168,0.05199982,3385.6,3385.2,3.855]
[1719709770138,0.05199982,3385.6,3385.5,0.855]
[1719709773141,14.73471184,3385.6,3385.5,0.855]
[1719709778881,14.73471184,3385.6,3385.5,3.286]
[1719709779048,14.73471184,3385.6,3385.5,6.836]
[1719709787595,14.73471184,3385.6,3385.5,3.55]
[1719709787891,14.73471184,3385.6,3385.5,1.405]
[1719709788058,14.73471184,3385.6,3385.5,4.405]
[1719709788255,14.73471184,3385.6,3385.5,1.405]
[1719709790882,14.73471184,3385.6,3385.5,0.55]
[1719709791084,14.73471184,3385.6,3385.5,1.405]
[1719709800267,14.73471184,3385.6,3385.5,0.55]
[1719709800468,14.73471184,3385.6,3385.5,0.855]
[1719709800709,14.73471184,3385.6,3385.5,1.405]
[1719709801014,14.73471184,3385.6,3385.5,0.855]
[1719709801705,14.73471184,3385.6,3385.0,3.0]
[1719709802011,14.73471184,3385.6,3385.5,0.855]
[1719709805072,14.73471184,3385.6,3385.5,1.405]
[1719709806806,14.73471184,3385.6,3385.5,0.855]
[1719709808111,14.73471184,3385.6,3385.0,3.05907672]
[1719709808112,14.73471184,3385.6,3385.4,0.855]
[1719709808402,16.20818302,3385.6,3385.4,0.855]
[1719709808916,16.20818302,3385.6,3384.9,3.0]
[1719709808917,14.68271202,3385.5,3384.9,3.0]
[1719709809128,14.68271202,3385.5,3385.4,0.855]
[1719709810312,16.38501322,3385.5,3385.4,0.855]
[1719709810632,16.38501322,3385.5,3385.0,0.55]
[1719709811013,16.38501322,3385.5,3385.2,0.855]
[1719709811399,16.38501322,3385.5,3385.0,0.55]
[1719709811600,16.38501322,3385.5,3384.8,0.55]
[1719709813905,16.38501322,3385.5,3384.8,1.405]
[1719709814902,14.68271202,3385.4,3384.8,1.405]
[1719709815351,14.68271202,3385.4,3384.8,0.55]
[1719709815650,3.97880132,3385.3,3384.8,0.55]
[1719709815959,4.02704607,3385.3,3384.8,0.55]
[1719709819539,4.02704607,3385.3,3384.7,0.55]
[1719709820845,14.68271202,3385.2,3384.7,0.55]
[1719709821046,0.04809512,3385.1,3384.7,0.55]
[1719709821242,14.68271202,3385.0,3384.7,0.55]
[1719709821484,0.04802455,3384.9,3384.7,0.55]
[1719709821696,0.04802455,3384.9,3384.8,0.855]
[1719709821898,0.04802455,3384.9,3384.8,1.405]
[1719709825758,0.04802455,3384.9,3384.8,0.55]
[1719709825955,0.04802455,3384.9,3384.8,0.855]
[1719709826182,0.04802455,3384.9,3384.8,1.405]
[1719709826801,14.73073657,3384.9,3384.8,1.405]
[1719709831706,14.7613733,3384.9,3384.8,1.405]
[1719709835000,2.3628,3384.8,3383.5,2.4338]
[1719709835205,14.68271202,3384.7,3383.5,2.4338]
[1719709835420,14.76124912,3384.7,3384.1,0.855]
[1719709835640,2.50761727,3384.6,3384.1,0.855]
[1719709835980,2.58618735,3384.6,3384.1,0.855]
[1719709836281,2.4707,3384.5,3384.1,0.855]
[1719709836588,2.54916822,3384.5,3384.1,0.855]
[1719709836793,1.97394975,3384.4,3383.5,2.4338]
[1719709836990,1.97394975,3384.4,3383.7,1.183752]
[1719709837303,0.07826788,3384.3,3383.6,3.0]
[1719709837500,0.7813414,3384.3,3383.8,0.855]
[1719709838216,0.7813414,3384.3,3383.9,0.55]
[1719709838793,14.68271202,3384.2,3383.9,0.55]
[1719709838987,16.67358234,3384.2,3383.9,0.55]
[1719709839189,0.07828636,3384.1,3383.9,0.55]
[1719709839406,14.68271202,3384.0,3383.9,0.55]
[1719709839610,14.76096688,3384.0,3383.9,0.55]
[1719709842110,14.76096688,3384.0,3383.6,1.183809]
[1719709842312,18.97715795,3384.0,3383.8,0.855]
[1719709844018,16.50645795,3384.0,3383.8,0.855]
[1719709844217,14.76096688,3384.0,3383.8,0.855]
[1719709844650,14.68271202,3383.9,3383.8,0.855]
[1719709844853,14.76051888,3383.9,3383.8,1.405]
[1719709845828,14.76051888,3383.9,3383.8,0.55]
[1719709846020,14.76051888,3383.9,3383.8,0.855]
[1719709846368,14.76051888,3383.9,3383.8,1.405]
[1719709853754,0.07780686,3383.9,3383.5,3.0]
[1719709854000,0.07780686,3383.9,3383.8,0.855]
[1719709854275,0.07780023,3383.9,3383.8,0.855]
[1719709854580,14.68271202,3384.1,3383.8,0.855]
[1719709854882,17.16354004,3384.1,3383.8,0.855]
[1719709855036,0.07783173,3384.0,3383.8,0.855]
[1719709859702,14.68271202,3383.9,3383.8,0.855]
[1719709859997,14.76044051,3383.9,3383.8,0.855]
[1719709868395,2.3708,3383.8,3383.3,1.183886]
[1719709868636,2.3708,3383.8,3383.4,0.55]
[1719709868838,0.07765485,3383.7,3383.4,3.55]
[1719709869200,2.3708,3383.8,3383.4,1.405]
[1719709869621,0.07765485,3383.7,3383.4,1.405]
[1719709869853,2.3708,3383.8,3383.4,1.405]
[1719709870156,0.07765485,3383.7,3383.4,1.405]
[1719709870328,0.07765485,3383.7,3383.6,0.855]
[1719709870529,1.47603669,3383.7,3383.0,1.183995]
[1719709870768,1.47603669,3383.7,3381.8,0.92955017]
[1719709870769,0.07761671,3383.6,3382.9,0.855]
[1719709870965,14.68271202,3383.5,3383.2,0.855]
[1719709871151,16.54342856,3383.5,3383.2,0.855]
[1719709871319,0.07758747,3383.4,3383.2,0.855]
[1719709871857,0.07758747,3383.4,3383.0,0.855]
[1719709872244,0.07758747,3383.4,3383.1,0.55]
[1719709872651,0.22558747,3383.4,3383.1,0.55]
[1719709873447,0.22558747,3383.4,3383.1,0.52]
[1719709874038,0.22558747,3383.4,3383.2,0.855]
[1719709874562,14.68271202,3383.3,3383.2,0.855]
[1719709874949,14.75945521,3383.3,3383.2,0.855]
[1719709876864,14.75945521,3383.3,3383.1,0.52]
[1719709878674,14.75945521,3383.3,3382.6,3.0]
[1719709878675,17.01665521,3383.3,3382.6,3.0]
[1719709878874,17.01665521,3383.3,3383.0,0.855]
[1719709879171,18.73312073,3383.3,3383.0,0.855]
[1719709879845,18.73312073,3383.3,3382.7,0.55]
[1719709880040,18.73312073,3383.3,3382.9,0.855]
[1719709880245,18.73312073,3383.3,3382.8,0.855]
[1719709880552,14.68271202,3383.2,3382.9,0.55]
[1719709880760,16.57082409,3383.2,3382.9,0.55]
[1719709881179,0.0738811,3383.1,3382.9,0.55]
[1719709881548,14.68271202,3383.0,3382.9,0.55]
[1719709881748,14.68271202,3383.0,3382.8,0.855]
[1719709882001,14.68271202,3383.0,3382.9,0.55]
[1719709882684,16.56551443,3383.0,3382.6,3.0]
[1719709882883,16.56551443,3383.0,3382.2,2.73572607]
[1719709883181,16.56551443,3383.0,3382.7,3.855]
[1719709883182,14.68271202,3382.9,3382.7,3.855]
[1719709883388,14.68271202,3382.9,3382.7,0.855]
[1719709884260,14.68271202,3382.9,3382.3,4.184233]
[1719709884501,14.68271202,3382.9,3382.8,0.855]
[1719709885916,14.68271202,3382.9,3382.8,3.855]
[1719709887414,14.68271202,3382.9,3382.8,0.855]
[1719709887609,14.68271202,3382.9,3382.8,3.855]
[1719709887813,14.68271202,3382.9,3382.8,0.855]
[1719709888930,14.68271202,3382.9,3382.5,3.0]
[1719709889085,14.68271202,3382.9,3382.7,0.855]
[1719709889433,2.2572,3382.8,3382.1,2.439]
[1719709889602,1.91033627,3382.7,3382.0,1.184348]
[1719709889992,1.91033627,3382.7,3382.1,0.855]
[1719709890187,1.91033627,3382.7,3382.0,1.184348]
[1719709890188,14.68271202,3382.6,3382.0,1.184348]
[1719709890532,1.88502483,3382.5,3381.5,0.29892133]
[1719709890740,1.88502483,3382.5,3380.9,2.07044]
[1719709890741,17.01341171,3382.4,3381.6,2.039469]
[1719709890890,19.68393483,3382.4,3381.2,0.29472905]
[1719709891085,19.68393483,3382.4,3381.5,0.855]
[1719709891292,19.68393483,3382.4,3381.4,1.18458]
[1719709891522,2.74907295,3382.3,3381.6,0.855]
[1719709891691,0.07337031,3382.2,3381.6,0.855]
[1719709892049,14.68271202,3382.1,3381.3,1.184584]
[1719709892252,16.65894755,3382.1,3381.1,0.855]
[1719709892450,1.54889332,3382.0,3381.1,0.855]
[1719709892636,1.54889332,3382.0,3381.3,0.855]
[1719709892847,1.54889332,3382.0,3381.5,0.855]
[1719709893156,1.54889332,3382.0,3380.7,1.184717]
[1719709893157,0.07328509,3382.0,3380.9,2.07043]
[1719709893452,0.07328509,3382.0,3381.9,0.855]
[1719709894353,0.07328509,3382.0,3381.3,3.0]
[1719709894509,0.07328509,3382.0,3381.1,3.0]
[1719709894510,1.5488848,3382.0,3381.9,0.855]
[1719709894915,16.23159682,3382.0,3380.9,3.0]
[1719709895159,14.75599711,3382.0,3381.3,0.855]
[1719709895529,2.2572,3381.9,3380.7,1.184717]
[1719709895751,16.45579093,3381.8,3381.3,0.855]
[1719709896043,14.75447122,3381.8,3380.7,1.184717]
[1719709896270,14.75447122,3381.8,3380.4,3.0]
[1719709896577,1.70116712,3381.7,3381.2,0.855]
[1719709896919,0.07171211,3381.6,3380.6,1.3036975]
[1719709897110,0.07171211,3381.6,3381.1,0.855]
[1719709897318,1.64555913,3381.5,3381.1,0.855]
[1719709897554,0.07164901,3381.4,3381.1,0.855]
[1719709898058,0.07164901,3381.4,3380.6,0.1188805]
[1719709898359,2.4763,3381.3,3380.6,0.1188805]
[1719709898516,2.4763,3381.3,3380.7,0.855]
[1719709898517,0.07152722,3381.2,3380.7,0.855]
[1719709898712,14.93749474,3381.1,3380.7,0.855]
[1719709898918,0.0713921,3381.0,3380.7,0.855]
[1719709899328,0.0713921,3381.0,3380.6,0.1188805]
[1719709899329,14.68271202,3380.9,3380.6,0.1188805]
[1719709899532,0.07130497,3380.8,3380.6,0.1188805]
[1719709899734,1.4754017,3380.7,3380.6,0.1188805]
[1719709899937,1.5466751,3380.7,3380.6,0.1188805]
[1719709904221,16.22938712,3380.7,3380.6,0.1188805]
[1719709904469,14.75398542,3380.7,3380.6,0.1188805]
[1719709917696,17.088733,3380.7,3380.6,0.1188805]
[1719709921048,24.04052769,3380.7,3380.6,0.1188805]
[1719709921450,27.09932769,3380.7,3380.6,0.1188805]
[1719709921653,29.88426046,3380.7,3380.6,0.1188805]
[1719709923074,26.76526046,3380.7,3380.6,0.1188805]
[1719709924213,14.752833,3380.7,3380.6,0.1188805]
[1719709925270,14.752833,3380.7,3380.6,2.1798805]
[1719709928965,14.752833,3380.7,3380.6,4.2505105]
[1719709929211,6.95179469,3381.1,3380.8,2.0705]
[1719709929377,6.95179469,3381.7,3380.9,0.55]
[1719709929581,6.95179469,3381.7,3381.4,2.061]
[1719709929807,1.639833,3381.8,3381.4,2.061]
[1719709934421,1.639833,3382.2,3381.4,2.061]
[1719709934620,1.639833,3382.2,3382.0,0.028]
[1719709936775,0.0591396,3382.1,3382.0,0.028]
[1719709940712,1.639833,3382.6,3382.0,0.028]
[1719709940879,0.05828233,3382.1,3382.0,0.028]
[1719709941095,6.95179469,3382.7,3382.1,2.0697]
[1719709941427,6.95179469,3382.7,3382.4,2.061]
[1719709941625,6.95179469,3382.7,3382.5,0.55]
[1719709941999,6.95179469,3382.7,3382.5,3.55]
[1719709944849,6.95179469,3382.7,3382.5,3.0]
[1719709945003,6.95179469,3382.7,3382.0,0.028]
[1719709946610,6.95179469,3382.7,3382.0,0.578]
[1719709950737,0.05857766,3382.6,3382.0,0.578]
[1719709958007,2.53877766,3382.6,3382.0,0.578]
[1719709962835,2.53877766,3382.6,3382.0,0.028]
[1719709963094,2.53877766,3382.6,3382.0,3.028]
[1719709963308,2.53877766,3382.6,3382.0,0.028]
[1719709979420,3.17757766,3382.6,3382.0,0.028]
[1719709979619,2.3431,3382.5,3382.0,0.028]
[1719709979819,2.3431,3382.3,3382.0,0.028]
[1719709980024,0.05842757,3382.2,3382.0,0.028]
[1719709980234,1.24724724,3382.4,3382.0,0.028]
[1719709980235,2.3431,3382.1,3382.0,0.028]
[1719709980440,2.40149603,3382.1,3382.0,0.028]
[1719709985964,0.05839603,3382.1,3382.0,0.028]
[1719709986291,1.639833,3382.1,3382.0,2.089]
[1719709986488,1.69005578,3382.1,3382.0,2.639]
[1719709986646,6.95179469,3382.7,3382.0,5.0241]
[1719709986842,6.95179469,3382.7,3382.6,2.061]
[1719709987283,6.95179469,3382.7,3382.6,2.611]
[1719709987483,6.95179469,3382.7,3382.6,5.611]
[1719709991060,1.639833,3382.9,3382.6,5.611]
[1719709991287,1.639833,3382.9,3382.7,3.0]
[1719709991456,1.639833,3383.2,3382.7,3.0]
[1719709992754,1.639833,3383.2,3382.2,2.061]
[1719709992958,1.639833,3383.2,3382.3,0.55]
[1719709993159,2.3431,3383.1,3382.3,3.55]
[1719709993361,2.3431,3383.1,3382.3,3.0]
[1719709993600,1.09347277,3383.0,3382.0,0.028]
[1719709993894,2.73330577,3383.0,3382.0,0.028]
[1719709994094,1.639833,3383.0,3382.0,0.028]
[1719709995793,0.05032585,3382.9,3382.0,0.028]
[1719709997088,1.69015885,3382.9,3382.0,0.028]
[1719710001996,1.69015885,3382.9,3382.1,2.061]
[1719710002270,1.69015885,3382.9,3382.2,0.55]
[1719710002682,1.69015885,3382.9,3382.2,3.55]
[1719710003087,1.639833,3382.8,3382.2,3.55]
[1719710003493,0.05033272,3382.7,3382.2,3.60912709]
[1719710004091,0.05033272,3382.7,3382.2,3.0]
[1719710004284,0.05033272,3382.7,3382.0,0.028]
[1719710004808,0.05033272,3382.7,3382.0,0.08713093]
[1719710005530,0.05033272,3382.7,3382.1,0.55]
[1719710005672,0.05033272,3382.7,3382.0,3.578]
[1719710005874,0.05033272,3382.7,3382.0,0.578]
[1719710006109,0.05033272,3382.7,3382.1,3.0]
[1719710006504,0.05033272,3382.7,3382.0,3.578]
[1719710009019,1.69016572,3382.7,3382.0,3.578]
[1719710013390,1.69016572,3382.7,3382.1,2.061]
[1719710013789,1.69016572,3382.7,3382.1,5.061]
[1719710014617,1.69016572,3382.7,3382.2,0.60912958]
[1719710014821,1.69016572,3382.7,3382.6,2.061]
[1719710014822,0.05033272,3382.7,3382.6,2.061]
[1719710015047,0.05033272,3382.7,3382.6,2.611]
[1719710015222,6.95179469,3383.3,3382.6,2.611]
[1719710015435,6.95179469,3383.3,3382.7,3.55]
[1719710015602,0.05052531,3383.2,3382.7,3.55]
[1719710015801,0.05052531,3383.2,3382.7,3.0]
[1719710016006,1.639833,3383.5,3382.6,2.061]
[1719710016201,0.05049378,3383.1,3382.6,2.061]
[1719710016425,0.05049318,3383.0,3382.6,2.061]
[1719710016614,1.639833,3383.5,3382.6,2.061]
[1719710016812,0.05061927,3383.4,3382.7,0.55]
[1719710017015,0.05061927,3383.4,3382.7,3.55]
[1719710018018,0.05061927,3383.4,3382.7,3.0]
[1719710018218,0.05061927,3383.4,3382.4,3.0]
[1719710018219,2.37622397,3383.4,3382.4,3.0]
[1719710018418,2.414,3383.3,3382.5,0.55]
[1719710018614,2.414,3383.3,3382.4,3.55]
[1719710018952,0.05055623,3383.2,3382.5,3.0]
[1719710019135,0.05055623,3383.2,3382.6,0.55]
[1719710019568,0.05055623,3383.2,3382.5,0.55]
[1719710020316,0.05055623,3383.2,3382.4,0.55]
[1719710020847,1.69038923,3383.2,3382.4,0.55]
[1719710022109,1.69038923,3383.2,3382.3,3.55]
[1719710022335,1.69038923,3383.2,3382.3,0.55]
[1719710022570,1.69038923,3383.2,3382.3,3.55]
[1719710025475,1.69038923,3383.2,3382.9,0.858]
[1719710025646,1.69038923,3383.2,3382.4,3.0]
[1719710025844,1.69038923,3383.2,3383.1,0.858]
[1719710026581,1.69038923,3383.2,3382.3,3.55]
[1719710026884,1.639833,3383.1,3383.0,0.858]
[1719710027034,1.68861681,3383.1,3383.0,0.858]
[1719710028745,1.68861681,3383.1,3382.3,3.55]
[1719710028955,1.68861681,3383.1,3382.4,3.0]
[1719710029279,1.68861681,3383.1,3383.0,0.858]
[1719710059112,1.68861681,3383.1,3383.0,1.408]
[1719710059273,1.68861681,3383.1,3383.0,4.408]
[1719710059274,0.29695177,3383.1,3383.0,4.408]
[1719710059470,0.29695177,3383.1,3383.0,6.47716]
[1719710059471,0.08846392,3383.1,3383.0,6.47716]
[1719710059778,0.03968011,3383.1,3383.0,6.47716]
[1719710062849,0.03968011,3383.5,3383.0,6.47716]
[1719710062988,0.03968011,3383.5,3383.4,0.858]
[1719710063197,0.03968011,3383.5,3383.4,1.408]
[1719710068572,0.03968011,3384.0,3383.4,1.408]
[1719710068767,0.03968011,3384.0,3383.7,0.858]
[1719710070752,0.04418947,3383.9,3383.7,0.858]
[1719710073524,0.04418947,3383.9,3383.5,3.0]
[1719710073726,0.04418947,3383.9,3383.6,0.858]
[1719710074573,0.08386958,3383.9,3383.6,0.858]
[1719710074986,0.08386958,3383.9,3383.4,0.55]
[1719710075292,0.08386958,3383.9,3383.5,0.858]
[1719710080500,0.04418947,3383.9,3383.5,0.858]
[1719710086693,0.08386958,3383.9,3383.5,0.858]
[1719710088603,0.08386958,3383.9,3383.6,0.55]
[1719710090199,0.08386958,3383.9,3383.7,0.858]
[1719710090776,0.04418947,3383.9,3383.7,3.858]
[1719710091087,21.54499469,3384.4,3383.8,0.55]
[1719710091287,2.2932,3384.4,3383.9,0.858]
[1719710092242,2.2932,3384.6,3384.2,0.858]
[1719710092512,2.2932,3384.6,3383.9,0.858]
[1719710093376,3.119,3384.5,3383.7,3.0]
[1719710093577,2.2932,3383.9,3382.5,3.0]
[1719710093786,6.95179469,3383.8,3383.0,0.858]
[1719710094201,6.95179469,3383.8,3383.2,0.858]
[1719710094516,2.33288011,3383.9,3383.0,0.858]
[1719710097597,2.33288011,3383.9,3383.2,0.858]
[1719710098007,3.46270212,3383.9,3383.2,0.858]
[1719710098439,3.42302201,3383.9,3383.2,0.858]
[1719710098634,3.42302201,3383.9,3382.8,3.0]
[1719710098635,2.2932,3383.9,3383.4,0.858]
[1719710099438,2.2932,3383.9,3383.2,0.858]
[1719710100099,2.2932,3383.9,3383.4,0.858]
[1719710100300,0.03968011,3384.0,3383.6,0.858]
[1719710100606,0.03968011,3384.0,3383.2,2.3981]
[1719710100607,0.03968011,3384.2,3383.8,0.858]
[1719710100810,0.04124656,3383.9,3383.8,0.858]
[1719710101011,0.03968011,3384.2,3383.8,0.858]
[1719710101218,0.04127006,3383.9,3383.8,0.858]
[1719710101535,0.03968011,3384.2,3383.8,0.858]
[1719710101708,0.04127006,3383.9,3383.8,0.858]
[1719710101909,0.03968011,3384.2,3383.8,0.858]
[1719710102100,0.04127006,3383.9,3383.8,0.858]
[1719710102445,0.04131171,3383.9,3383.8,0.858]
[1719710102625,0.03968011,3384.2,3383.8,0.858]
[1719710102803,0.04131171,3383.9,3383.8,0.858]
[1719710103000,0.03968011,3384.2,3383.3,3.0]
[1719710103201,0.94346748,3384.1,3383.2,2.3981]
[1719710103516,0.94346748,3384.1,3383.4,0.858]
[1719710103841,0.0413365,3384.0,3383.4,0.858]
[1719710104003,0.03968011,3384.2,3383.4,0.858]
[1719710104206,0.04130499,3383.9,3383.4,0.858]
[1719710104428,0.03968011,3384.1,3383.4,0.858]
[1719710104626,0.04127348,3383.8,3383.4,0.858]
[1719710104834,0.03968011,3384.1,3383.4,0.858]
[1719710105140,0.04124197,3383.7,3383.4,0.858]
[1719710105348,0.03968011,3384.1,3383.4,0.858]
[1719710105511,0.04121046,3383.6,3383.4,0.858]
[1719710105716,2.4432,3384.0,3383.2,0.858]
[1719710106117,0.04130499,3383.9,3383.2,0.858]
[1719710110319,0.0809851,3383.9,3383.2,0.858]
[1719710113877,0.0809851,3383.9,3382.7,3.0]
[1719710114045,0.0809851,3383.9,3383.3,0.858]
[1719710115382,2.4432,3383.8,3382.8,0.55]
[1719710115785,2.4432,3383.8,3382.9,0.858]